bitfinex-derivatives/quotes_BNBF0:USTF0_20250710
["timestamp","ask_amount","ask_price","bid_price","bid_amount"]
[1752143292915,1.45241592,669.92,669.09,1.747]
[1752143293118,1.45241592,669.91,669.09,1.747]
[1752143293318,1.45241592,669.9,669.09,1.747]
[1752143293520,1.45241592,669.89,669.09,1.747]
[1752143293716,1.45241592,669.88,669.09,1.747]
[1752143294019,1.66323019,670.02,669.09,1.747]
[1752143294020,1.45241592,669.87,669.09,1.747]
[1752143294319,1.45241592,669.86,669.09,1.747]
[1752143294519,1.45241592,669.85,669.09,1.747]
[1752143294819,1.45241592,669.84,669.09,1.747]
[1752143295021,1.45241592,669.83,669.09,1.747]
[1752143295217,1.45241592,669.82,669.09,1.747]
[1752143295417,1.45241592,669.81,669.09,1.747]
[1752143295717,1.45241592,669.8,669.09,1.747]
[1752143295917,1.45241592,669.79,669.09,1.747]
[1752143296216,1.45241592,669.78,669.09,1.747]
[1752143296422,1.45241592,669.77,669.09,1.747]
[1752143296722,1.45241592,669.76,669.09,1.747]
[1752143296922,1.66323019,670.09,669.09,1.747]
[1752143297124,3.11514673,670.08,669.09,1.747]
[1752143297322,1.45191654,670.07,669.09,1.747]
[1752143297519,1.45191654,670.06,669.09,1.747]
[1752143297722,1.45191654,670.05,669.09,1.747]
[1752143297921,1.45191654,670.04,669.09,1.747]
[1752143298120,1.45191654,670.03,669.09,1.747]
[1752143298322,1.45191654,670.03,669.23,3.35556608]
[1752143298323,1.45191654,670.02,669.23,3.35556608]
[1752143298625,1.45191654,670.01,669.23,3.35556608]
[1752143298824,1.45191654,670.0,669.23,3.35556608]
[1752143299119,1.45191654,669.99,669.23,3.35556608]
[1752143299323,1.45191654,669.98,669.23,3.35556608]
[1752143299522,1.45191654,669.97,669.23,3.35556608]
[1752143299722,1.45191654,669.96,669.23,3.35556608]
[1752143300019,1.45191654,669.95,669.19,3.35556608]
[1752143300217,1.45191654,669.94,669.19,3.35556608]
[1752143300419,1.45191654,669.93,669.19,3.35556608]
[1752143300618,1.45191654,669.92,669.19,3.35556608]
[1752143300819,1.45191654,669.91,669.19,3.35556608]
[1752143301121,1.45191654,669.9,669.19,3.35556608]
[1752143301323,1.45191654,669.89,669.19,3.35556608]
[1752143301521,1.45191654,669.88,669.19,3.35556608]
[1752143301726,1.45191654,669.87,669.19,3.35556608]
[1752143302025,1.45191654,669.86,669.19,3.35556608]
[1752143302225,1.45191654,669.85,669.19,3.35556608]
[1752143302425,1.45191654,669.84,669.19,3.35556608]
[1752143302623,1.45191654,669.83,669.19,3.35556608]
[1752143302824,1.45191654,669.82,669.19,3.35556608]
[1752143303022,1.45191654,669.81,669.19,3.35556608]
[1752143303225,1.45191654,669.8,669.19,3.35556608]
[1752143303522,1.45191654,669.79,669.19,3.35556608]
[1752143303727,1.66323019,670.05,669.19,3.35556608]
[1752143303922,1.45194501,670.04,669.19,3.35556608]
[1752143304128,1.45194501,670.03,669.19,3.35556608]
[1752143304422,1.45194501,670.02,669.19,3.35556608]
[1752143304628,1.45194501,670.01,669.18,3.35556608]
[1752143304927,1.45194501,670.0,669.18,3.35556608]
[1752143305123,1.45194501,669.99,669.18,3.35556608]
[1752143305323,1.45194501,669.98,669.18,3.35556608]
[1752143305525,1.45194501,669.97,669.18,3.35556608]
[1752143305724,1.45194501,669.96,669.18,3.35556608]
[1752143305922,1.45194501,669.95,669.18,3.35556608]
[1752143306228,1.45194501,669.94,669.17,3.35556608]
[1752143306525,1.45194501,669.93,669.09,1.747]
[1752143306723,1.45194501,669.92,669.09,1.747]
[1752143306927,1.45194501,669.91,669.09,1.747]
[1752143307227,1.45194501,669.9,669.09,1.747]
[1752143307428,1.45194501,669.89,669.11,3.35556608]
[1752143307625,1.45194501,669.88,669.11,3.35556608]
[1752143307928,1.45194501,669.87,669.11,3.35556608]
[1752143308128,1.45194501,669.86,669.11,3.35556608]
[1752143308325,1.45194501,669.85,669.11,3.35556608]
[1752143308528,1.45194501,669.84,669.11,3.35556608]
[1752143308728,1.45194501,669.83,669.11,3.35556608]
[1752143308925,1.45194501,669.82,669.11,3.35556608]
[1752143309125,1.45194501,669.81,669.11,3.35556608]
[1752143309328,1.45194501,669.8,669.11,3.35556608]
[1752143309525,1.45194501,669.79,669.09,5.10256608]
[1752143309825,5.50905782,670.79,669.09,5.10256608]
[1752143309826,1.45194501,669.78,669.11,3.35556608]
[1752143310024,1.45194501,669.77,669.09,5.10256608]
[1752143310225,1.66323019,669.94,669.1,3.35556608]
[1752143310226,1.45194501,669.76,669.1,3.35556608]
[1752143310428,1.45194501,669.75,669.1,3.35556608]
[1752143310725,1.45194501,669.74,669.1,3.35556608]
[1752143310924,1.45194501,669.73,669.1,3.35556608]
[1752143311129,1.45194501,669.72,669.1,3.35556608]
[1752143311331,1.45194501,669.71,669.1,3.35556608]
[1752143311630,1.45194501,669.7,669.1,3.35556608]
[1752143311828,1.45194501,669.69,669.1,3.35556608]
[1752143312026,1.45194501,669.68,669.1,3.35556608]
[1752143312224,1.66323019,669.93,669.1,3.35556608]
[1752143312429,1.45222232,669.92,669.1,3.35556608]
[1752143312626,1.45222232,669.91,669.1,3.35556608]
[1752143312828,1.45222232,669.9,669.09,5.10256608]
[1752143313127,1.45222232,669.89,669.09,5.10256608]
[1752143313431,1.45222232,669.88,669.09,5.10256608]
[1752143313633,1.45222232,669.87,669.09,5.10256608]
[1752143313828,1.45222232,669.86,669.09,5.10256608]
[1752143314030,1.45222232,669.85,669.09,5.10256608]
[1752143314232,1.45222232,669.84,669.09,5.10256608]
[1752143314428,1.45222232,669.83,669.09,5.10256608]
[1752143314633,1.45222232,669.82,669.09,5.10256608]
[1752143314832,1.45222232,669.81,669.09,5.10256608]
[1752143315033,1.45222232,669.8,669.09,5.10256608]
[1752143315232,1.45222232,669.79,669.09,5.10256608]
[1752143315432,1.45222232,669.78,669.1,3.35556608]
[1752143315629,1.45222232,669.77,669.09,1.747]
[1752143315831,1.45222232,669.76,669.09,1.747]
[1752143316129,1.45222232,669.75,669.09,1.747]
[1752143316338,1.45222232,669.74,669.11,3.35556608]
[1752143316529,1.45222232,669.73,669.11,3.35556608]
[1752143316733,1.45222232,669.72,669.11,3.35556608]
[1752143316931,1.45222232,669.71,669.1,3.35556608]
[1752143317133,1.66323019,669.97,669.1,3.35556608]
[1752143317337,1.45247858,669.96,669.11,3.35556608]
[1752143317637,1.45247858,669.95,669.11,3.35556608]
[1752143317831,1.45247858,669.94,669.1,3.35556608]
[1752143318037,1.45247858,669.93,669.1,3.35556608]
[1752143318233,1.45247858,669.92,669.1,3.35556608]
[1752143318433,1.45247858,669.91,669.1,3.35556608]
[1752143318634,1.45247858,669.9,669.1,3.35556608]
[1752143318840,1.45247858,669.89,669.1,3.35556608]
[1752143319134,1.45247858,669.88,669.11,3.35556608]
[1752143319337,1.45247858,669.87,669.12,3.35556608]
[1752143319535,1.66323019,669.96,669.12,3.35556608]
[1752143319536,1.45247858,669.86,669.12,3.35556608]
[1752143319739,1.45247858,669.85,669.12,3.35556608]
[1752143319939,1.45247858,669.84,669.13,3.35556608]
[1752143320137,1.45247858,669.83,669.13,3.35556608]
[1752143320337,1.45247858,669.82,669.13,3.35556608]
[1752143320539,1.45247858,669.81,669.13,3.35556608]
[1752143320739,1.45247858,669.8,669.13,3.35556608]
[1752143320936,1.45247858,669.79,669.13,3.35556608]
[1752143321135,1.45247858,669.78,669.13,3.35556608]
[1752143321338,1.45247858,669.77,669.09,1.747]
[1752143321642,1.45247858,669.76,669.09,1.747]
[1752143321939,1.45247858,669.75,669.09,1.747]
[1752143322137,1.66323019,669.97,669.09,1.747]
[1752143322138,1.45247858,669.74,669.09,1.747]
[1752143322342,1.45247858,669.73,669.09,1.747]
[1752143322541,1.45247858,669.72,669.09,5.10256608]
[1752143322742,1.45247858,669.71,669.09,5.10256608]
[1752143322938,1.45247858,669.7,669.09,5.10256608]
[1752143323142,1.45247858,669.69,669.09,5.10256608]
[1752143323339,1.66323019,669.96,669.1,3.35556608]
[1752143323542,1.45301203,669.95,669.1,3.35556608]
[1752143323842,1.45301203,669.94,669.1,3.35556608]
[1752143324043,1.45301203,669.93,669.1,3.35556608]
[1752143324239,1.45301203,669.92,669.1,3.35556608]
[1752143324444,1.45301203,669.91,669.1,3.35556608]
[1752143324743,1.45301203,669.9,669.1,3.35556608]
[1752143324944,1.45301203,669.89,669.1,3.35556608]
[1752143325141,1.45301203,669.88,669.1,3.35556608]
[1752143325344,1.45301203,669.87,669.1,3.35556608]
[1752143325540,1.45301203,669.86,669.11,3.35556608]
[1752143325740,1.45301203,669.85,669.11,3.35556608]
[1752143325940,1.45301203,669.84,669.11,3.35556608]
[1752143326239,1.45301203,669.83,669.12,3.35556608]
[1752143326441,1.45301203,669.82,669.13,3.35556608]
[1752143326743,1.66323019,669.96,669.13,3.35556608]
[1752143326744,1.45301203,669.81,669.13,3.35556608]
[1752143326944,1.45301203,669.8,669.14,3.35556608]
[1752143327141,1.45301203,669.79,669.14,3.35556608]
[1752143327440,1.45301203,669.78,669.14,3.35556608]
[1752143327642,1.45301203,669.77,669.15,3.35556608]
[1752143327846,1.45301203,669.76,669.14,3.35556608]
[1752143328042,1.45301203,669.75,669.14,3.35556608]
[1752143328347,1.45301203,669.74,669.13,3.35556608]
[1752143328545,1.45301203,669.73,669.13,3.35556608]
[1752143328742,1.45301203,669.72,669.13,3.35556608]
[1752143328945,1.66323019,669.96,669.13,3.35556608]
[1752143328946,1.45301203,669.71,669.13,3.35556608]
[1752143329247,1.45301203,669.7,669.13,3.35556608]
[1752143329442,1.45301203,669.69,669.13,3.35556608]
[1752143329643,1.66323019,669.96,669.13,3.35556608]
[1752143329847,1.45330482,669.95,669.14,3.35556608]
[1752143330046,1.45330482,669.94,669.13,3.35556608]
[1752143330245,1.45330482,669.93,669.13,3.35556608]
[1752143330443,1.45330482,669.92,669.14,3.35556608]
[1752143330646,1.45330482,669.91,669.14,3.35556608]
[1752143330844,1.45330482,669.9,669.14,3.35556608]
[1752143331043,1.45330482,669.89,669.13,3.35556608]
[1752143331244,1.45330482,669.88,669.17,3.35556608]
[1752143331547,1.45330482,669.87,669.15,3.35556608]
[1752143331846,1.45330482,669.86,669.17,3.35556608]
[1752143332046,1.45330482,669.85,669.17,3.35556608]
[1752143332249,1.45330482,669.84,669.17,3.35556608]
[1752143332547,1.45330482,669.83,669.17,3.35556608]
[1752143332747,1.45330482,669.82,669.12,3.35556608]
[1752143333043,1.45330482,669.81,669.12,3.35556608]
[1752143333247,1.45330482,669.8,669.12,3.35556608]
[1752143333546,1.66323019,669.96,669.12,3.35556608]
[1752143333547,1.45330482,669.79,669.12,3.35556608]
[1752143333747,1.45330482,669.78,669.12,3.35556608]
[1752143333943,1.45330482,669.77,669.12,3.35556608]
[1752143334243,1.45330482,669.76,669.13,3.35556608]
[1752143334447,1.45330482,669.75,669.14,3.35556608]
[1752143334647,1.66323019,669.95,669.09,1.747]
[1752143334648,1.45330482,669.74,669.13,3.35556608]
[1752143334947,1.45330482,669.73,669.13,3.35556608]
[1752143335146,1.45330482,669.72,669.13,3.35556608]
[1752143335343,1.45330482,669.71,669.12,3.35556608]
[1752143335546,1.45330482,669.7,669.12,3.35556608]
[1752143335846,1.45330482,669.69,669.12,3.35556608]
[1752143336044,1.45330482,669.68,669.12,3.35556608]
[1752143336347,1.45330482,669.67,669.11,3.35556608]
[1752143336546,1.45330482,669.66,669.1,3.35556608]
[1752143336744,1.66323019,669.94,669.1,3.35556608]
[1752143336948,1.45379601,669.93,669.1,3.35556608]
[1752143337249,1.45379601,669.92,669.1,3.35556608]
[1752143337547,1.45379601,669.91,669.1,3.35556608]
[1752143337747,1.45379601,669.9,669.1,3.35556608]
[1752143337944,1.45379601,669.89,669.1,3.35556608]
[1752143338145,1.45379601,669.88,669.1,3.35556608]
[1752143338344,1.66323019,669.94,669.1,3.35556608]
[1752143338345,1.45379601,669.87,669.1,3.35556608]
[1752143338545,1.45379601,669.86,669.1,3.35556608]
[1752143338745,1.45379601,669.85,669.1,3.35556608]
[1752143338946,1.45379601,669.84,669.1,3.35556608]
[1752143339147,1.45379601,669.83,669.1,3.35556608]
[1752143339448,1.45379601,669.82,669.11,3.35556608]
[1752143339647,1.45379601,669.81,669.11,3.35556608]
[1752143339950,1.45379601,669.8,669.11,3.35556608]
[1752143340145,1.45379601,669.79,669.11,3.35556608]
[1752143340346,1.45379601,669.78,669.11,3.35556608]
[1752143340548,1.45379601,669.77,669.09,1.747]
[1752143340848,1.45379601,669.76,669.09,1.747]
[1752143341050,1.45379601,669.75,669.09,1.747]
[1752143341352,1.45379601,669.74,669.09,1.747]
[1752143341651,1.45379601,669.73,669.09,1.747]
[1752143341848,1.45379601,669.72,669.09,1.747]
[1752143342150,1.45379601,669.71,669.09,1.747]
[1752143342348,1.45379601,669.7,669.09,1.747]
[1752143342552,1.45379601,669.69,669.09,1.747]
[1752143342752,1.45379601,669.68,669.09,1.747]
[1752143342952,1.45379601,669.67,669.09,1.747]
[1752143343150,1.45379601,669.66,669.09,1.747]
[1752143343350,1.45379601,669.65,669.09,1.747]
[1752143343550,1.45379601,669.64,669.09,1.747]
[1752143343751,1.45379601,669.63,669.09,1.747]
[1752143343952,1.45379601,669.62,669.09,1.747]
[1752143344252,1.45379601,669.61,669.09,1.747]
[1752143344549,1.45379601,669.6,669.09,1.747]
[1752143344753,1.66323019,669.97,669.09,1.747]
[1752143345054,1.45481139,669.96,669.09,1.747]
[1752143345250,1.45481139,669.95,669.09,1.747]
[1752143345454,1.45481139,669.94,669.09,1.747]
[1752143345750,1.45481139,669.93,669.09,1.747]
[1752143345951,1.45481139,669.92,669.09,1.747]
[1752143346253,1.45481139,669.91,669.09,1.747]
[1752143346450,1.45481139,669.9,669.09,1.747]
[1752143346654,1.45481139,669.89,669.09,1.747]
[1752143346854,1.45481139,669.88,669.09,1.747]
[1752143347150,1.45481139,669.87,669.09,1.747]
[1752143347358,1.45481139,669.86,669.09,1.747]
[1752143347550,1.45481139,669.85,669.09,1.747]
[1752143347750,1.45481139,669.84,669.09,1.747]
[1752143348050,1.45481139,669.83,669.09,1.747]
[1752143348353,1.45481139,669.82,669.08,0.25981589]
[1752143348553,1.45481139,669.81,669.08,0.25981589]
[1752143348754,1.45481139,669.8,669.08,0.25981589]
[1752143348954,1.45481139,669.79,669.08,0.25981589]
[1752143349254,1.45481139,669.78,669.08,0.25981589]
[1752143349450,1.45481139,669.77,669.08,0.25981589]
[1752143349653,1.45481139,669.76,669.08,0.25981589]
[1752143349953,1.45481139,669.75,669.08,0.25981589]
[1752143350154,1.45481139,669.74,669.08,0.25981589]
[1752143350353,1.45481139,669.73,669.08,0.25981589]
[1752143350554,1.45481139,669.72,669.08,0.25981589]
[1752143350754,1.45481139,669.71,669.08,0.25981589]
[1752143350953,1.45481139,669.7,669.09,1.605]
[1752143351149,1.66323019,669.98,669.23,3.35556608]
[1752143351350,1.45444638,669.97,669.23,3.35556608]
[1752143351551,1.45444638,669.96,669.21,3.35556608]
[1752143351753,1.45444638,669.95,669.21,3.35556608]
[1752143351953,1.45444638,669.94,669.21,3.35556608]
[1752143352252,1.45444638,669.93,669.2,3.35556608]
[1752143352456,1.45444638,669.92,669.2,3.35556608]
[1752143352652,1.45444638,669.91,669.2,3.35556608]
[1752143352851,1.45444638,669.9,669.2,3.35556608]
[1752143353051,1.45444638,669.89,669.2,3.35556608]
[1752143353253,1.45444638,669.88,669.2,3.35556608]
[1752143353453,1.45444638,669.87,669.21,3.35556608]
[1752143353653,1.45444638,669.86,669.21,3.35556608]
[1752143353856,1.45444638,669.85,669.21,3.35556608]
[1752143354156,1.45444638,669.84,669.21,3.35556608]
[1752143354355,1.45444638,669.83,669.21,3.35556608]
[1752143354653,1.45444638,669.82,669.22,3.35556608]
[1752143354853,1.45444638,669.81,669.22,3.35556608]
[1752143355157,1.45444638,669.8,669.22,3.35556608]
[1752143355355,1.45444638,669.79,669.22,3.35556608]
[1752143355553,1.45444638,669.78,669.22,3.35556608]
[1752143355857,1.45444638,669.77,669.22,3.35556608]
[1752143356054,1.45444638,669.76,669.22,3.35556608]
[1752143356357,1.45444638,669.75,669.12,3.35556608]
[1752143356553,1.45444638,669.74,669.11,3.35556608]
[1752143356758,1.45444638,669.73,669.09,4.96056608]
[1752143356961,1.45444638,669.72,669.09,4.96056608]
[1752143357159,1.45444638,669.71,669.09,4.96056608]
[1752143357358,1.45444638,669.7,669.09,4.96056608]
[1752143357559,1.45444638,669.69,669.09,4.96056608]
[1752143357759,1.45444638,669.68,669.16,3.35556608]
[1752143358054,1.45444638,669.67,669.15,3.35556608]
[1752143358257,1.45444638,669.66,669.15,3.35556608]
[1752143358458,1.45444638,669.65,669.15,3.35556608]
[1752143358755,1.45444638,669.64,669.15,3.35556608]
[1752143358958,1.45444638,669.63,669.15,3.35556608]
[1752143359159,1.45444638,669.62,669.15,3.35556608]
[1752143359459,1.66323019,669.88,669.15,3.35556608]
[1752143359659,1.45303912,669.87,669.15,3.35556608]
[1752143359860,1.45303912,669.86,669.15,3.35556608]
[1752143360159,1.45303912,669.85,669.15,3.35556608]
[1752143360461,1.45303912,669.84,669.13,3.35556608]
[1752143360660,1.45303912,669.83,669.13,3.35556608]
[1752143360859,1.45303912,669.82,669.13,3.35556608]
[1752143361057,1.45303912,669.81,669.12,3.35556608]
[1752143361361,1.45303912,669.8,669.12,3.35556608]
[1752143361561,1.45303912,669.79,669.12,3.35556608]
[1752143361758,1.45303912,669.78,669.12,3.35556608]
[1752143361957,1.45303912,669.77,669.12,3.35556608]
[1752143362161,1.45303912,669.76,669.13,3.35556608]
[1752143362364,1.45303912,669.75,669.13,3.35556608]
[1752143362565,1.45303912,669.74,669.13,3.35556608]
[1752143362761,1.45303912,669.73,669.13,3.35556608]
[1752143363062,1.45303912,669.72,669.13,3.35556608]
[1752143363265,1.45303912,669.71,669.13,3.35556608]
[1752143363462,1.45303912,669.7,669.12,3.35556608]
[1752143363762,1.45303912,669.69,669.12,3.35556608]
[1752143363961,1.45303912,669.68,669.12,3.35556608]
[1752143364166,1.45303912,669.67,669.12,3.35556608]
[1752143364368,1.45303912,669.66,669.12,3.35556608]
[1752143364562,1.45303912,669.65,669.12,3.35556608]
[1752143364764,1.45303912,669.64,669.12,3.35556608]
[1752143364963,1.45303912,669.63,669.12,3.35556608]
[1752143365167,1.45303912,669.62,669.12,3.35556608]
[1752143365365,1.45303912,669.61,669.12,3.35556608]
[1752143365564,1.66323019,669.88,669.12,3.35556608]
[1752143365866,1.45299215,669.87,669.11,3.35556608]
[1752143366065,1.45299215,669.86,669.12,3.35556608]
[1752143366363,1.45299215,669.85,669.16,3.35556608]
[1752143366565,1.45299215,669.84,669.16,3.35556608]
[1752143366765,1.45299215,669.83,669.17,3.35556608]
[1752143366966,1.45299215,669.82,669.17,3.35556608]
[1752143367164,1.45299215,669.81,669.17,3.35556608]
[1752143367364,1.45299215,669.8,669.17,3.35556608]
[1752143367565,1.45299215,669.79,669.17,3.35556608]
[1752143367866,1.45299215,669.78,669.18,3.35556608]
[1752143368066,1.45299215,669.77,669.18,3.35556608]
[1752143368265,1.45299215,669.76,669.19,3.35556608]
[1752143368470,1.45299215,669.75,669.19,3.35556608]
[1752143368770,1.45299215,669.74,669.16,3.35556608]
[1752143368970,1.45299215,669.73,669.16,3.35556608]
[1752143369270,1.45299215,669.72,669.16,3.35556608]
[1752143369566,1.45299215,669.71,669.16,3.35556608]
[1752143369765,1.66323019,669.92,669.16,3.35556608]
[1752143369766,1.45299215,669.7,669.16,3.35556608]
[1752143369969,1.45299215,669.69,669.16,3.35556608]
[1752143370172,1.45299215,669.68,669.18,3.35556608]
[1752143370371,1.45299215,669.67,669.18,3.35556608]
[1752143370671,1.45299215,669.66,669.17,3.35556608]
[1752143370871,1.45299215,669.65,669.19,3.35556608]
[1752143371068,1.66323019,669.91,669.19,3.35556608]
[1752143371271,1.45296955,669.9,669.19,3.35556608]
[1752143371467,1.45296955,669.89,669.19,3.35556608]
[1752143371672,1.45296955,669.88,669.13,3.35556608]
[1752143371872,1.45296955,669.87,669.13,3.35556608]
[1752143372072,1.45296955,669.86,669.13,3.35556608]
[1752143372272,1.45296955,669.85,669.13,3.35556608]
[1752143372472,1.45296955,669.84,669.12,3.35556608]
[1752143372672,1.45296955,669.83,669.12,3.35556608]
[1752143372873,1.45296955,669.82,669.12,3.35556608]
[1752143373073,1.45296955,669.81,669.12,3.35556608]
[1752143373270,1.45296955,669.8,669.12,3.35556608]
[1752143373473,1.45296955,669.79,669.12,3.35556608]
[1752143373668,1.45296955,669.78,669.12,3.35556608]
[1752143373873,1.45296955,669.77,669.12,3.35556608]
[1752143374170,1.45296955,669.76,669.12,3.35556608]
[1752143374373,1.45296955,669.75,669.12,3.35556608]
[1752143374574,1.45296955,669.74,669.12,3.35556608]
[1752143374774,1.45296955,669.73,669.12,3.35556608]
[1752143374973,1.45296955,669.72,669.12,3.35556608]
[1752143375172,1.45296955,669.71,669.12,3.35556608]
[1752143375371,1.45296955,669.7,669.12,3.35556608]
[1752143375572,1.45296955,669.69,669.12,3.35556608]
[1752143375875,1.66323019,669.93,669.09,1.605]
[1752143375876,1.45296955,669.68,669.11,3.35556608]
[1752143376175,1.45296955,669.67,669.11,3.35556608]
[1752143376377,1.45296955,669.66,669.09,4.96056608]
[1752143376576,1.45296955,669.65,669.09,4.96056608]
[1752143376773,1.45296955,669.64,669.09,4.96056608]
[1752143376976,1.45296955,669.63,669.09,4.96056608]
[1752143377173,1.45296955,669.62,669.09,4.96056608]
[1752143377377,1.66323019,669.91,669.09,4.96056608]
[1752143377673,1.45295005,669.9,669.09,4.96056608]
[1752143377872,1.45295005,669.89,669.09,1.605]
[1752143378076,1.45295005,669.88,669.09,1.605]
[1752143378377,1.45295005,669.87,669.09,1.605]
[1752143378578,1.45295005,669.86,669.1,3.35556608]
[1752143378773,1.45295005,669.85,669.1,3.35556608]
[1752143378974,1.45295005,669.84,669.1,3.35556608]
[1752143379276,1.45295005,669.83,669.09,1.605]
[1752143379477,1.45295005,669.82,669.09,1.605]
[1752143379677,1.45295005,669.81,669.09,1.605]
[1752143379977,1.45295005,669.8,669.09,1.605]
[1752143380278,1.45295005,669.79,669.09,1.605]
[1752143380575,1.45295005,669.78,669.09,4.96056608]
[1752143380773,1.45295005,669.77,669.09,4.96056608]
[1752143380977,1.45295005,669.76,669.09,4.96056608]
[1752143381276,1.45295005,669.75,669.09,4.96056608]
[1752143381478,1.45295005,669.74,669.09,4.96056608]
[1752143381674,1.45295005,669.73,669.11,3.35556608]
[1752143381880,1.45295005,669.72,669.11,3.35556608]
[1752143382077,1.45295005,669.71,669.11,3.35556608]
[1752143382378,1.45295005,669.7,669.12,3.35556608]
[1752143382575,1.45295005,669.69,669.12,3.35556608]
[1752143382879,1.45295005,669.68,669.1,3.35556608]
[1752143383080,1.45295005,669.67,669.09,4.96056608]
[1752143383276,1.45295005,669.66,669.09,4.96056608]
[1752143383576,1.45295005,669.65,669.09,4.96056608]
[1752143383777,1.45295005,669.64,669.09,4.96056608]
[1752143383978,1.45295005,669.63,669.1,3.35556608]
[1752143384180,5.50905782,670.91,669.09,1.605]
[1752143384181,1.45295005,669.62,669.09,1.605]
[1752143384478,1.45295005,669.61,669.09,1.605]
[1752143384676,1.66323019,669.93,669.09,1.605]
[1752143384981,1.4531245,669.92,669.09,1.605]
[1752143385181,1.4531245,669.91,669.09,1.605]
[1752143385379,1.4531245,669.9,669.09,1.605]
[1752143385581,1.4531245,669.89,669.09,1.605]
[1752143385779,1.4531245,669.88,669.09,1.605]
[1752143385981,1.4531245,669.87,669.09,1.605]
[1752143386281,1.4531245,669.86,669.09,1.605]
[1752143386481,1.4531245,669.85,669.1,3.35556608]
[1752143386681,1.4531245,669.84,669.1,3.35556608]
[1752143386881,1.66323019,670.0,669.1,3.35556608]
[1752143386882,1.4531245,669.83,669.1,3.35556608]
[1752143387181,1.4531245,669.82,669.1,3.35556608]
[1752143387378,1.4531245,669.81,669.1,3.35556608]
[1752143387577,1.4531245,669.8,669.11,3.35556608]
[1752143387777,1.4531245,669.79,669.11,3.35556608]
[1752143388082,1.4531245,669.78,669.11,3.35556608]
[1752143388378,1.4531245,669.77,669.11,3.35556608]
[1752143388581,1.4531245,669.76,669.11,3.35556608]
[1752143388878,1.4531245,669.75,669.11,3.35556608]
[1752143389079,1.4531245,669.74,669.11,3.35556608]
[1752143389279,1.4531245,669.73,669.11,3.35556608]
[1752143389583,1.4531245,669.72,669.11,3.35556608]
[1752143389777,1.4531245,669.71,669.11,3.35556608]
[1752143389982,1.4531245,669.7,669.11,3.35556608]
[1752143390182,1.4531245,669.69,669.11,3.35556608]
[1752143390381,1.4531245,669.68,669.11,3.35556608]
[1752143390582,1.66323019,670.0,669.11,3.35556608]
[1752143390783,1.45295338,669.99,669.11,3.35556608]
[1752143390983,1.45295338,669.98,669.11,3.35556608]
[1752143391278,1.45295338,669.97,669.11,3.35556608]
[1752143391484,1.45295338,669.96,669.12,3.35556608]
[1752143391678,1.45295338,669.95,669.12,3.35556608]
[1752143391879,1.45295338,669.94,669.12,3.35556608]
[1752143392083,1.45295338,669.93,669.12,3.35556608]
[1752143392282,1.45295338,669.92,669.12,3.35556608]
[1752143392481,1.45295338,669.91,669.13,3.35556608]
[1752143392781,3.30543469,670.34,669.08,0.25981589]
[1752143392782,1.45295338,669.9,669.08,0.25981589]
[1752143392979,1.45295338,669.89,669.08,0.25981589]
[1752143393181,1.45295338,669.88,669.08,0.25981589]
[1752143393384,1.45295338,669.87,669.08,0.25981589]
[1752143393581,1.45295338,669.86,669.09,1.521]
[1752143393783,1.45295338,669.85,669.09,1.521]
[1752143393981,1.45295338,669.84,669.09,1.521]
[1752143394180,1.45295338,669.83,669.09,1.521]
[1752143394383,1.45295338,669.82,669.09,1.521]
[1752143394585,1.45295338,669.81,669.09,1.521]
[1752143394780,1.45295338,669.8,669.09,1.521]
[1752143394979,1.45295338,669.79,669.09,1.521]
[1752143395183,1.45295338,669.78,669.09,1.521]
[1752143395384,1.45295338,669.77,669.09,1.521]
[1752143395582,1.45295338,669.76,669.09,1.521]
[1752143395785,1.45295338,669.75,669.09,1.521]
[1752143395985,1.45295338,669.74,669.09,1.521]
[1752143396180,1.45295338,669.73,669.09,1.521]
[1752143396486,1.45295338,669.72,669.09,1.521]
[1752143396683,1.45295338,669.71,669.09,1.521]
[1752143396989,1.45295338,669.7,669.09,1.521]
[1752143397187,1.45295338,669.69,669.09,1.521]
[1752143397383,1.45295338,669.68,669.09,1.521]
[1752143397587,1.45295338,669.67,669.09,1.521]
[1752143397785,1.45295338,669.66,669.09,1.521]
[1752143398084,1.45295338,669.65,669.09,1.521]
[1752143398289,1.45295338,669.64,669.09,1.521]
[1752143398486,1.45295338,669.63,669.09,1.521]
[1752143398684,1.45295338,669.62,669.09,1.521]
[1752143398887,1.45295338,669.61,669.09,1.521]
[1752143399084,1.45295338,669.6,669.09,1.521]
[1752143399386,1.45295338,669.59,669.09,1.521]
[1752143399586,1.45295338,669.58,669.09,1.521]
[1752143399784,1.45295338,669.57,669.09,1.521]
[1752143399991,1.45295338,669.56,669.09,1.521]
[1752143400189,1.45295338,669.55,669.09,1.521]
[1752143400488,1.45295338,669.54,669.09,1.521]
[1752143400688,1.45295338,669.53,669.09,1.521]